bitfinex-derivatives/quotes_SOLF0:USTF0_20250404
["timestamp","ask_amount","ask_price","bid_price","bid_amount"]
[1743754992989,58.88325281,118.55,118.46,36.94833361]
[1743754993292,8.4371,118.54,118.46,36.94833361]
[1743754993593,0.06353894,118.51,118.49,0.05522104]
[1743754998496,0.06353894,118.51,118.49,35.11522104]
[1743754999597,0.06353894,118.51,118.49,0.05522104]
[1743755003102,8.50253894,118.51,118.49,0.05522104]
[1743755003996,0.06353894,118.51,118.49,0.05522104]
[1743755005706,48.27600514,118.6,118.5,544.86325281]
[1743755005894,93.6148057,118.61,118.58,23.60325281]
[1743755005895,61.49132128,118.61,118.58,23.60325281]
[1743755006096,156.8191454,118.62,118.6,23.60325281]
[1743755006297,114.5348454,118.62,118.6,32.04325281]
[1743755006497,73.5345454,118.62,118.6,32.04325281]
[1743755006704,73.5345454,118.62,118.61,8.4316]
[1743755006904,0.05828924,118.62,118.61,8.44]
[1743755007305,0.05828924,118.62,118.61,16.8716]
[1743755007803,4.6088,118.69,118.62,8.4309]
[1743755008005,307.83349072,118.63,118.62,44.3109]
[1743755008203,6.7289,118.73,118.62,45.70462597]
[1743755008406,6.7289,118.73,118.67,14.71681377]
[1743755008604,6.7289,118.73,118.68,35.88]
[1743755008810,21.44571377,118.73,118.68,35.88]
[1743755009106,14.71681377,118.71,118.69,0.05654118]
[1743755009310,8.4253,118.7,118.65,35.86]
[1743755009704,14.71681377,118.71,118.65,35.86]
[1743755009705,59.41424231,118.71,118.65,35.86]
[1743755010106,59.41424231,118.71,118.63,1.68591418]
[1743755010511,0.05826323,118.68,118.67,228.44101464]
[1743755010706,8.48486323,118.68,118.67,196.39471464]
[1743755010907,0.05826323,118.68,118.66,283.62480837]
[1743755011104,8.4274,118.67,118.66,283.62480837]
[1743755011413,0.05826323,118.68,118.66,283.62480837]
[1743755011916,0.05826323,118.68,118.62,35.84]
[1743755012214,8.48496323,118.68,118.66,0.05473677]
[1743755012610,0.05826323,118.68,118.66,0.05473677]
[1743755014814,8.48556323,118.68,118.66,0.05473677]
[1743755015006,0.05826323,118.68,118.66,0.05473677]
[1743755015817,8.4285,118.66,118.62,35.84]
[1743755016019,23.55424231,118.67,118.62,35.84]
[1743755016411,8.4284,118.66,118.62,35.84]
[1743755016912,0.06146943,118.65,118.63,0.06343764]
[1743755017112,8.4289,118.65,118.63,0.06343764]
[1743755017313,23.55424231,118.67,118.63,0.06343764]
[1743755017616,8.428,118.67,118.63,0.06343764]
[1743755017812,35.7,118.68,118.63,0.06343764]
[1743755018312,0.05674827,118.67,118.63,0.06343764]
[1743755018816,23.61099058,118.67,118.63,0.06343764]
[1743755019218,8.4295,118.64,118.63,0.06343764]
[1743755020711,23.55424231,118.65,118.57,2.3351]
[1743755020915,23.55424231,118.65,118.58,35.42]
[1743755021117,58.97424231,118.65,118.57,2.3351]
[1743755021312,8.4315,118.62,118.57,37.7351]
[1743755021817,8.4315,118.62,118.58,0.06230023]
[1743755022011,0.0585887,118.61,118.58,0.06230023]
[1743755023110,16.8502,118.71,118.58,0.06230023]
[1743755023111,16.8502,118.71,118.58,23.61654254]
[1743755023317,23.55424231,118.69,118.59,8.4327]
[1743755023615,23.55424231,118.69,118.6,37.509]
[1743755024423,37.5872,118.7,118.63,0.05798247]
[1743755024424,0.05605598,118.66,118.63,0.05798247]
[1743755024726,8.4292,118.65,118.63,0.05798247]
[1743755025924,8.4292,118.65,118.63,35.43798247]
[1743755026326,8.48445598,118.66,118.63,35.43798247]
[1743755026526,0.05605598,118.66,118.63,35.43798247]
[1743755026822,8.4291,118.65,118.63,35.43798247]
[1743755028326,0.05605598,118.66,118.63,35.43798247]
[1743755030028,8.4295,118.64,118.63,35.43798247]
[1743755031127,8.4291,118.65,118.63,35.43798247]
[1743755031737,4.868,118.65,118.63,35.43798247]
[1743755032023,8.48435598,118.66,118.63,35.43798247]
[1743755032228,0.05605598,118.66,118.63,35.43798247]
[1743755032529,8.4295,118.65,118.63,35.43798247]
[1743755032728,0.05605598,118.66,118.63,35.43798247]
[1743755033126,8.4295,118.64,118.63,35.43798247]
[1743755035828,8.4295,118.64,118.63,0.05798247]
[1743755037127,8.4291,118.65,118.63,0.05798247]
[1743755037433,0.05605598,118.66,118.63,0.05798247]
[1743755038934,0.05605598,118.66,118.63,8.48758247]
[1743755039435,0.05605598,118.66,118.64,8.4294]
[1743755039933,0.05605598,118.66,118.65,34.84]
[1743755040736,8.48415598,118.66,118.65,34.84]
[1743755041434,0.05605598,118.66,118.65,34.84]
[1743755041737,53.94936033,118.72,118.65,34.84]
[1743755042139,8.4279,118.67,118.65,34.84]
[1743755042935,8.49090371,118.67,118.65,34.89374663]
[1743755043134,8.4281,118.66,118.65,34.89374663]
[1743755043935,8.4281,118.66,118.65,0.05374663]
[1743755046241,8.49070371,118.67,118.65,0.05374663]
[1743755046541,0.06300371,118.67,118.65,0.05374663]
[1743755047143,8.4281,118.66,118.65,0.05374663]
[1743755048043,8.49160371,118.67,118.65,0.05374663]
[1743755048244,0.06300371,118.67,118.65,0.05374663]
[1743755048643,8.4289,118.66,118.65,0.05374663]
[1743755049936,8.49140371,118.67,118.65,0.05374663]
[1743755050341,0.06300371,118.67,118.65,0.05374663]
[1743755050543,8.4289,118.66,118.65,0.05374663]
[1743755050744,49.20516033,118.66,118.61,284.39506756]
[1743755050940,14.72516033,118.64,118.61,284.39506756]
[1743755051146,8.4317,118.62,118.61,284.39506756]
[1743755052243,8.4325,118.61,118.6,0.06011011]
[1743755052436,0.05533975,118.63,118.6,0.06011011]
[1743755052642,14.72516033,118.62,118.6,0.06011011]
[1743755052841,8.4342,118.59,118.57,284.39506756]
[1743755053246,14.72516033,118.62,118.57,284.39506756]
[1743755053644,14.72516033,118.6,118.57,284.39506756]
[1743755054144,8.4342,118.59,118.57,284.45638874]
[1743755054546,14.78927217,118.6,118.57,284.45638874]
[1743755054741,23.15976033,118.58,118.57,284.45638874]
[1743755054947,23.15976033,118.58,118.57,0.06132118]
[1743755056452,8.4346,118.58,118.57,0.06132118]
[1743755056651,23.15976033,118.58,118.57,0.06132118]
[1743755057247,23.15976033,118.58,118.57,2.118e-05]
[1743755057546,8.4376,118.54,118.51,34.88]
[1743755057854,14.72516033,118.56,118.5,34.88]
[1743755058041,8.4386,118.53,118.5,34.88]
[1743755058351,8.4386,118.53,118.49,297.43156756]
[1743755058651,8.4389,118.52,118.5,0.05929603]
[1743755058851,0.05834114,118.53,118.5,0.05929603]
[1743755059349,8.4392,118.52,118.5,0.05929603]
[1743755059552,0.05834114,118.53,118.5,0.05929603]
[1743755059753,8.49684114,118.53,118.5,0.05929603]
[1743755060147,0.05834114,118.53,118.51,8.4392]
[1743755060348,0.05834114,118.53,118.5,0.05929603]
[1743755060853,8.49694114,118.53,118.5,0.05929603]
[1743755061048,0.05834114,118.53,118.5,0.05929603]
[1743755061547,0.05834114,118.53,118.5,14.78445636]
[1743755062451,14.72516033,118.58,118.52,8.4385]
[1743755062651,14.72516033,118.6,118.53,34.8]
[1743755062954,8.436,118.57,118.53,34.8]
[1743755063354,14.72516033,118.6,118.53,34.8]
[1743755063557,0.06367713,118.58,118.55,0.05330856]
[1743755064152,8.436,118.56,118.55,0.05330856]
[1743755064352,0.06367713,118.58,118.55,0.05330856]
[1743755064749,8.436,118.56,118.55,0.05330856]
[1743755065561,8.4357,118.57,118.55,0.05330856]
[1743755066162,8.436,118.56,118.55,0.05330856]
[1743755067770,0.06367713,118.58,118.55,0.05330856]
[1743755068260,8.436,118.56,118.55,0.05330856]
[1743755069469,8.4376,118.54,118.5,34.54]
[1743755069773,49.48516033,118.6,118.52,14.72516033]
[1743755069969,49.48516033,118.6,118.53,36.9336]
[1743755070162,49.48516033,118.6,118.53,45.3714]
[1743755070364,8.4357,118.57,118.53,36.9336]
[1743755070572,0.0545414,118.58,118.55,0.06188127]
[1743755070768,0.0545414,118.58,118.55,8.49858127]
[1743755070967,8.4897414,118.58,118.55,8.49858127]
[1743755071165,0.0545414,118.58,118.55,0.06188127]
[1743755071972,8.4894414,118.58,118.55,8.49858127]
[1743755072473,8.4894414,118.58,118.55,0.06188127]
[1743755072772,8.4894414,118.58,118.55,8.49858127]
[1743755072973,8.4894414,118.58,118.55,0.06188127]
[1743755073169,8.4353,118.57,118.55,0.06188127]
[1743755073667,8.436,118.56,118.55,0.06188127]
[1743755074372,8.4357,118.57,118.55,0.06188127]
[1743755075071,8.436,118.56,118.55,0.06188127]
[1743755075274,0.0545414,118.58,118.55,0.06188127]
[1743755075674,8.4357,118.57,118.55,0.06188127]
[1743755075973,0.0545414,118.58,118.55,0.06188127]
[1743755076372,8.4353,118.57,118.55,0.06188127]
[1743755076874,8.436,118.56,118.55,0.06188127]
[1743755078772,8.4357,118.57,118.55,0.06188127]
[1743755080968,8.436,118.56,118.55,0.06188127]
[1743755084177,8.4356,118.57,118.55,0.06188127]
[1743755085977,14.77970173,118.58,118.55,0.06188127]
[1743755086279,8.436,118.56,118.55,0.06188127]
[1743755087779,8.4356,118.57,118.55,0.06188127]
[1743755088980,8.436,118.56,118.55,0.06188127]
[1743755092677,17.87577604,118.57,118.55,0.06188127]
[1743755093084,9.43997604,118.57,118.55,0.06188127]
[1743755093275,8.436,118.56,118.55,0.06188127]
[1743755094176,17.87597604,118.56,118.55,0.06188127]
[1743755094682,0.0545414,118.58,118.55,0.06188127]
[1743755094886,9.43997604,118.57,118.55,0.06188127]
[1743755095786,8.436,118.56,118.55,0.06188127]
[1743755096282,9.43997604,118.57,118.55,0.06188127]
[1743755096489,17.87567604,118.57,118.55,0.06188127]
[1743755097885,8.436,118.56,118.55,0.06188127]
[1743755098188,9.43997604,118.56,118.5,33.82]
[1743755098486,8.4384,118.53,118.5,8.44]
[1743755098786,8.4384,118.53,118.49,16.40027604]
[1743755098987,8.4384,118.53,118.49,50.22027604]
[1743755099388,8.49271178,118.52,118.5,0.05682946]
[1743755100188,8.4396,118.51,118.5,0.05682946]
[1743755100786,8.4415,118.49,118.46,2.186]
[1743755101086,9.43997604,118.5,118.46,2.186]
[1743755101384,9.43997604,118.49,118.46,2.186]
[1743755101590,9.43997604,118.48,118.46,2.186]
[1743755101789,8.4422,118.48,118.46,2.186]
[1743755102087,8.50441117,118.48,118.46,2.24024539]
[1743755102289,8.4424,118.47,118.46,0.05424539]
[1743755102490,0.06221117,118.48,118.46,0.05424539]
[1743755103488,0.06221117,118.48,118.47,8.4424]
[1743755103691,23.21030272,118.52,118.46,0.05424539]
[1743755103990,14.77100272,118.52,118.47,33.78]
[1743755104191,8.4399,118.51,118.47,42.2221]
[1743755104493,8.4399,118.51,118.47,33.78]
[1743755104690,14.77100272,118.52,118.47,33.78]
[1743755104891,0.0643195,118.5,118.47,33.78]
[1743755105293,0.0643195,118.5,118.47,42.2219]
[1743755105487,0.0643195,118.5,118.47,33.78]
[1743755105891,0.0643195,118.5,118.48,2.1812]
[1743755106491,0.0643195,118.5,118.48,10.6223]
[1743755107092,0.0643195,118.5,118.49,8.441]
[1743755107587,14.77100272,118.54,118.48,2.1812]
[1743755107588,8.437,118.55,118.51,8.4391]
[1743755107992,53.11610272,118.58,118.5,48.55100272]
[1743755108188,48.55100272,118.58,118.51,2.2471]
[1743755108385,14.77100272,118.58,118.51,2.2471]
[1743755108786,0.05442441,118.56,118.53,0.0645353]
[1743755109092,14.82542713,118.56,118.53,0.0645353]
[1743755109292,0.05442441,118.56,118.53,0.0645353]
[1743755110194,8.49052441,118.56,118.54,33.68]
[1743755110397,0.05442441,118.56,118.54,33.68]
[1743755110585,0.05442441,118.56,118.53,0.0645353]
[1743755110790,8.4374,118.54,118.53,0.0645353]
[1743755111094,0.05442441,118.56,118.53,0.0645353]
[1743755111995,8.4374,118.55,118.53,0.0645353]
[1743755112791,0.05442441,118.56,118.53,0.0645353]
[1743755113296,8.49052441,118.56,118.53,8.5023353]
[1743755113596,8.49052441,118.56,118.53,0.0645353]
[1743755113786,8.49052441,118.56,118.53,8.5026353]
[1743755114396,0.05442441,118.56,118.53,8.5026353]
[1743755114594,0.05442441,118.56,118.53,0.0645353]
[1743755114899,11.60373718,118.62,118.55,14.77100272]
[1743755115092,8.4336,118.6,118.56,42.0558]
[1743755115505,61.18595144,118.63,118.56,42.0558]
[1743755115506,61.18595144,118.63,118.56,33.62]
[1743755115798,46.41494872,118.63,118.57,14.77100272]
[1743755116103,0.0552286,118.61,118.58,0.05624394]
[1743755116291,0.0552286,118.61,118.59,42.0735]
[1743755116491,46.41494872,118.63,118.59,50.70600272]
[1743755116694,46.41494872,118.63,118.6,2.261]
[1743755116901,46.41494872,118.63,118.6,10.6936]
[1743755117498,54.84604872,118.63,118.6,2.261]
[1743755117696,46.47370244,118.63,118.6,2.261]
[1743755118301,0.05875372,118.63,118.6,2.261]
[1743755118503,0.05875372,118.63,118.6,10.6941]
[1743755119406,8.48985372,118.63,118.6,2.261]
[1743755119706,0.05875372,118.63,118.59,35.935]
[1743755119906,0.05875372,118.63,118.59,44.3685]
[1743755120205,0.05875372,118.63,118.59,50.70600272]
[1743755120704,0.05875372,118.63,118.61,8.4318]
[1743755121205,0.05875372,118.63,118.61,8.4856566]
[1743755121704,0.05875372,118.63,118.62,33.52]
[1743755123009,14.77100272,118.74,118.62,33.52]
[1743755123205,14.77100272,118.7,118.63,8.4306]
[1743755123504,8.4286,118.67,118.63,8.4306]
[1743755124206,0.05384938,118.66,118.64,0.05713172]
[1743755124408,0.05384938,118.66,118.64,8.48733172]
[1743755124607,0.05384938,118.66,118.65,33.42]
[1743755125108,8.4271,118.69,118.65,41.8496]
[1743755125306,8.4271,118.69,118.65,50.42430272]
[1743755125506,8.426,118.71,118.67,8.4281]
[1743755125704,53.10534872,118.75,118.68,33.38]
[1743755125905,8.4258,118.71,118.68,35.5944]
[1743755126206,8.48126721,118.71,118.68,35.65492021]
[1743755126406,0.05546721,118.71,118.68,35.65492021]
[1743755126606,0.05546721,118.71,118.68,44.08212021]
[1743755126795,0.05546721,118.71,118.68,50.42592293]
[1743755127003,0.05546721,118.71,118.7,14.77100272]
[1743755127211,11.60373718,118.77,118.7,14.77100272]
[1743755127503,8.4219,118.76,118.72,23.19530272]
[1743755128009,8.4219,118.76,118.72,25.54930272]
[1743755128308,8.4219,118.76,118.73,0.05321542]
[1743755128309,0.05812455,118.75,118.73,0.05321542]
[1743755129607,8.48072455,118.75,118.73,0.05321542]
[1743755129808,0.05812455,118.75,118.73,0.05321542]
[1743755130211,8.4232,118.74,118.73,0.05321542]
[1743755130807,33.46,118.74,118.68,2.2144]
[1743755131006,14.77100272,118.73,118.67,33.46]
[1743755131509,8.4264,118.7,118.67,33.46]
[1743755131710,14.77100272,118.73,118.67,33.46]
[1743755131912,0.06107979,118.7,118.67,33.52298753]
[1743755132318,0.06107979,118.7,118.67,0.06298753]
[1743755134911,8.48717979,118.7,118.67,8.49108753]
[1743755135212,8.48717979,118.7,118.67,0.06298753]
[1743755135517,0.06107979,118.7,118.67,0.06298753]
[1743755135917,0.06107979,118.7,118.67,8.49078753]
[1743755136816,0.06107979,118.7,118.68,8.4274]
[1743755137018,0.06107979,118.7,118.67,0.06298753]
[1743755138218,8.48677979,118.7,118.67,0.06298753]
[1743755139413,8.4261,118.69,118.67,0.06298753]
[1743755141416,0.06107979,118.7,118.67,0.06298753]
[1743755142119,8.4266,118.68,118.67,0.06298753]
[1743755142319,14.77100272,118.69,118.61,14.77100272]
[1743755142621,14.77100272,118.69,118.61,48.37100272]
[1743755142820,8.4289,118.65,118.61,56.80260272]
[1743755143214,8.4285,118.66,118.62,8.4307]
[1743755143420,14.77100272,118.69,118.61,48.37100272]
[1743755143617,0.05439763,118.65,118.63,0.06463763]
[1743755145526,14.82540035,118.65,118.57,48.29100272]
[1743755145724,14.77100272,118.65,118.57,52.63630272]
[1743755145918,8.4284,118.66,118.62,8.4306]
[1743755146115,8.4284,118.66,118.61,33.52]
[1743755146318,18.31055262,118.75,118.61,48.29100272]
[1743755146624,0.05753705,118.69,118.67,0.06375459]
[1743755146822,16.97390272,118.75,118.68,33.48]
[1743755147027,16.97390272,118.75,118.69,33.48]
[1743755147220,14.83303557,118.73,118.67,33.46]
[1743755147416,14.77100272,118.71,118.67,33.46]
[1743755147621,8.4254,118.7,118.69,0.0639755]
[1743755147927,0.06009853,118.7,118.69,0.0639755]
[1743755149316,8.48529853,118.7,118.69,0.0639755]
[1743755151925,8.48529853,118.7,118.63,14.77100272]
[1743755151926,8.4272,118.68,118.65,33.32]
[1743755152328,14.83110125,118.7,118.65,41.7484]
[1743755152928,14.83110125,118.7,118.66,8.4279]
[1743755153228,14.83110125,118.7,118.66,0.05816282]
[1743755153728,14.83110125,118.7,118.67,8.4273]
[1743755153930,14.83110125,118.7,118.66,0.05816282]
[1743755154429,17.08210125,118.7,118.66,0.05816282]
[1743755154619,17.08210125,118.7,118.66,8.48586282]
[1743755155227,0.06009853,118.7,118.66,41.72586282]
[1743755155430,0.06009853,118.7,118.66,33.29816282]
[1743755156729,0.06009853,118.7,118.66,0.05816282]
[1743755159027,0.06009853,118.7,118.67,8.4273]
[1743755159531,0.06009853,118.7,118.66,8.48566282]
[1743755160627,0.06009853,118.7,118.66,0.05816282]
[1743755160831,14.83110125,118.7,118.66,0.05816282]
[1743755161032,14.77100272,118.68,118.66,0.05816282]
[1743755161326,14.77100272,118.68,118.62,10.11655631]
[1743755161534,14.77100272,118.66,118.62,43.23655631]
[1743755161730,14.77100272,118.66,118.62,34.80605631]
[1743755161931,14.77100272,118.68,118.62,33.12]
[1743755162525,0.05970186,118.66,118.64,0.0546682]
[1743755163125,0.05970186,118.66,118.65,8.4288]
[1743755163326,0.05970186,118.66,118.65,41.5288]
[1743755163827,81.46247858,118.71,118.67,8.4271]
[1743755164227,81.46247858,118.71,118.65,33.1]
[1743755164732,14.77100272,118.72,118.65,33.1]
[1743755164931,14.77100272,118.72,118.67,8.4273]
[1743755165236,0.06364994,118.7,118.67,0.06259363]
[1743755165531,0.06364994,118.7,118.68,41.4864]
[1743755166229,0.06364994,118.7,118.69,8.4259]
[1743755167132,139.09979251,118.77,118.69,23.19100272]
[1743755167328,139.09979251,118.77,118.71,14.77100272]
[1743755167532,139.09979251,118.77,118.72,33.02]
[1743755167736,14.77100272,118.75,118.68,4.6665]
[1743755167937,14.77100272,118.75,118.68,37.7265]
[1743755168437,0.06281621,118.73,118.7,0.0546715]
[1743755168843,8.4241,118.72,118.7,0.0546715]
[1743755169030,0.06281621,118.73,118.7,0.0546715]
[1743755169233,14.83381893,118.73,118.7,0.0546715]
[1743755169434,8.4245,118.71,118.7,0.0546715]
[1743755169636,14.83381893,118.73,118.7,0.0546715]
[1743755170333,8.4264,118.69,118.57,1.465973]
[1743755170539,8.4264,118.69,118.6,14.77100272]
[1743755170540,33.02,118.68,118.6,14.77100272]
[1743755171634,0.06026096,118.65,118.63,0.0614042]
[1743755175542,4.6911,118.72,118.64,47.67100272]
[1743755175742,14.77100272,118.71,118.65,4.4772]
[1743755175938,14.77100272,118.69,118.62,47.77100272]
[1743755176138,23.19730272,118.69,118.62,47.77100272]
[1743755176643,0.05812135,118.67,118.64,0.05643222]
[1743755177443,8.48562135,118.67,118.64,0.05643222]
[1743755177644,47.86912407,118.67,118.64,0.05643222]
[1743755177943,23.19980272,118.65,118.64,0.05643222]
[1743755178643,14.77100272,118.65,118.64,0.05643222]
[1743755179238,56.29702407,118.67,118.64,0.05643222]
[1743755179438,47.86912407,118.67,118.64,0.05643222]
[1743755179746,56.66784481,118.67,118.64,0.05643222]
[1743755180044,8.4286,118.66,118.64,0.05643222]
[1743755180244,56.66784481,118.67,118.64,0.05643222]
[1743755180639,65.09574481,118.67,118.64,0.05643222]
[1743755181035,56.66784481,118.67,118.64,0.05643222]
[1743755181746,65.09554481,118.67,118.64,0.05643222]
[1743755182643,8.4282,118.66,118.64,0.05643222]
[1743755182843,56.66784481,118.67,118.64,0.05643222]
[1743755183041,56.66784481,118.67,118.58,6.9054]
[1743755183346,56.60972346,118.67,118.58,6.9054]
[1743755184344,8.49273046,118.64,118.61,0.06191555]
[1743755184749,0.06273046,118.64,118.61,0.06191555]
[1743755187752,4.3975,118.7,118.61,23.63163901]
[1743755188048,32.86,118.71,118.63,23.56972346]
[1743755188238,157.84917879,118.73,118.64,37.2045]
[1743755188239,30.35312346,118.73,118.64,37.2045]
[1743755188443,32.86,118.72,118.64,37.2045]
[1743755188648,8.4256,118.7,118.64,37.2045]
[1743755189044,0.05590753,118.69,118.67,0.06417024]
[1743755189445,23.62563099,118.69,118.62,32.88]
[1743755190346,8.4269,118.68,118.62,32.88]
[1743755190551,8.4269,118.68,118.64,0.06079981]
[1743755190753,0.05705976,118.66,118.64,0.06079981]
[1743755191943,0.05705976,118.66,118.65,32.86]
[1743755193147,0.05705976,118.66,118.64,0.06079981]
[1743755194257,8.48515976,118.66,118.64,0.06079981]
[1743755194756,0.05705976,118.66,118.64,0.06079981]
[1743755196052,41.32565976,118.66,118.64,0.06079981]
[1743755196258,32.89705976,118.66,118.64,0.06079981]
[1743755196654,41.32555976,118.66,118.64,0.06079981]
[1743755197156,32.89705976,118.66,118.64,0.06079981]
[1743755197354,0.05705976,118.66,118.64,0.06079981]
[1743755198359,32.84,118.7,118.64,32.92079981]
[1743755198660,8.4251,118.71,118.65,2.1696]
[1743755198860,32.86,118.72,118.65,2.1696]
[1743755199166,8.4255,118.7,118.65,2.1696]
[1743755199562,0.05896698,118.69,118.66,0.05338845]
[1743755200665,8.48496698,118.69,118.66,0.05338845]
[1743755202968,0.05896698,118.69,118.66,0.05338845]
[1743755203374,8.48496698,118.69,118.66,0.05338845]
[1743755204066,0.05896698,118.69,118.66,0.05338845]
[1743755204670,8.4273,118.68,118.66,0.05338845]
[1743755205371,8.4274,118.67,118.66,0.05338845]
[1743755206475,8.4272,118.68,118.66,0.05338845]
[1743755206876,32.79896698,118.69,118.66,0.05338845]
[1743755207077,8.4272,118.68,118.66,0.05338845]
[1743755208575,0.05896698,118.69,118.66,0.05338845]
[1743755210280,8.4273,118.68,118.66,0.05338845]
[1743755210477,0.05896698,118.69,118.66,0.05338845]
[1743755210778,8.4274,118.67,118.66,0.05338845]
[1743755213179,8.427,118.68,118.66,0.05338845]
[1743755214682,8.4274,118.67,118.66,0.05338845]
[1743755218884,32.56,118.68,118.62,39.3197]
[1743755218885,47.27717153,118.68,118.62,39.3197]
[1743755219483,47.27717153,118.68,118.62,32.62]
[1743755219687,47.27717153,118.68,118.6,32.62]
[1743755219884,0.05789609,118.65,118.63,0.06221854]
[1743755220187,14.71717153,118.7,118.63,32.6]
[1743755220489,8.4274,118.67,118.63,32.6606825]
[1743755221489,8.48778327,118.68,118.63,32.6606825]
[1743755222290,8.4274,118.67,118.63,32.6606825]
[1743755222990,8.48758327,118.68,118.63,32.6606825]
[1743755223187,14.71717153,118.64,118.52,284.39506756]
[1743755223387,14.71717153,118.61,118.52,284.39506756]
[1743755223587,14.71717153,118.63,118.53,14.71717153]
[1743755223790,32.68,118.62,118.54,32.68]
[1743755223990,32.68,118.62,118.55,4.6068]
[1743755224397,0.05511033,118.6,118.57,0.0596109]
[1743755224594,8.48801033,118.6,118.57,0.0596109]
[1743755224794,0.05511033,118.6,118.57,0.0596109]
[1743755225092,8.48801033,118.6,118.57,0.0596109]
[1743755226398,8.4332,118.59,118.57,0.0596109]
[1743755226695,0.05511033,118.6,118.57,0.0596109]
[1743755226895,8.4337,118.58,118.57,0.0596109]
[1743755227397,47.37717153,118.59,118.52,32.64]
[1743755227598,8.4363,118.55,118.52,32.64]
[1743755228600,8.5004646,118.55,118.52,32.69967313]
[1743755228798,0.0641646,118.55,118.52,32.69967313]
[1743755229499,8.5000646,118.55,118.52,32.69967313]
[1743755230097,0.0641646,118.55,118.52,32.69967313]
[1743755230298,0.0641646,118.55,118.53,2.1947]
[1743755231101,8.5001646,118.55,118.53,2.1947]
[1743755231302,0.0641646,118.55,118.53,2.1947]
[1743755249013,0.0641646,118.55,118.53,11.63340422]
[1743755249814,9.43870422,118.6,118.54,9.43870422]
[1743755250007,9.43870422,118.6,118.55,41.85870422]
[1743755250408,8.4334,118.59,118.55,41.85870422]
[1743755250812,17.87210422,118.59,118.55,41.85870422]
[1743755251013,0.06411213,118.58,118.56,0.05948309]
[1743755253715,8.49811213,118.58,118.56,0.05948309]
[1743755253916,0.06411213,118.58,118.56,0.05948309]
[1743755254113,17.87320422,118.57,118.56,0.05948309]
[1743755255812,8.4345,118.57,118.56,0.05948309]
[1743755256511,8.49831213,118.58,118.56,0.05948309]
[1743755257012,0.06411213,118.58,118.56,0.05948309]
[1743755257616,8.4345,118.57,118.56,0.05948309]
[1743755259113,0.06411213,118.58,118.56,0.05948309]
[1743755259717,8.4345,118.57,118.56,0.05948309]
[1743755264230,8.49841213,118.58,118.56,0.05948309]
[1743755264828,0.06411213,118.58,118.56,0.05948309]
[1743755265424,8.49801213,118.58,118.56,0.05948309]
[1743755266127,0.06411213,118.58,118.56,0.05948309]
[1743755266331,14.74766495,118.63,118.56,32.47948309]
[1743755266530,14.74766495,118.63,118.56,32.42]
[1743755266731,8.4317,118.61,118.57,2.3381]
[1743755267433,0.05632027,118.6,118.58,0.06153802]
[1743755268334,8.48872027,118.6,118.58,0.06153802]
[1743755268531,0.05632027,118.6,118.58,0.06153802]
[1743755269029,8.433,118.59,118.58,0.06153802]
[1743755270539,8.48902027,118.6,118.58,0.06153802]
[1743755271740,8.433,118.59,118.58,0.06153802]
[1743755272840,0.05632027,118.6,118.58,0.06153802]
[1743755272841,8.48902027,118.6,118.58,0.06153802]
[1743755273247,0.05632027,118.6,118.58,0.06153802]
[1743755273643,8.433,118.59,118.58,0.06153802]
[1743755274143,8.48902027,118.6,118.58,0.06153802]
[1743755274647,0.05632027,118.6,118.58,0.06153802]
[1743755275446,8.433,118.59,118.58,0.06153802]
[1743755275747,0.05632027,118.6,118.58,0.06153802]
[1743755276047,0.05632027,118.6,118.58,33.12153802]
[1743755277647,0.05632027,118.6,118.59,9.42868546]
[1743755278050,9.42868546,118.65,118.59,9.42868546]
[1743755278344,9.42868546,118.65,118.58,33.12153802]
[1743755278345,9.42868546,118.65,118.6,9.42868546]
[1743755278849,9.42868546,118.64,118.59,9.42868546]
[1743755279150,0.0590749,118.63,118.6,0.06460143]
[1743755279743,8.4892749,118.63,118.6,0.06460143]
[1743755280043,0.0590749,118.63,118.6,0.06460143]
[1743755280753,0.0590749,118.63,118.6,9.49328689]
[1743755281550,0.0590749,118.63,118.61,9.42868546]
[1743755281851,0.0590749,118.63,118.61,42.30868546]
[1743755282848,0.0590749,118.63,118.62,9.42868546]
[1743755284152,0.0590749,118.63,118.61,42.30868546]
[1743755284351,0.0590749,118.63,118.6,0.06460143]
[1743755284751,8.4898749,118.63,118.6,0.06460143]
[1743755285451,8.431,118.62,118.6,0.06460143]
[1743755286549,0.0590749,118.63,118.6,0.06460143]
[1743755286550,8.4894749,118.63,118.6,0.06460143]
[1743755287552,8.4894749,118.63,118.6,9.49328689]
[1743755288453,8.4309,118.62,118.6,9.49328689]